bitfinex-derivatives/quotes_SOLF0:USTF0_20250328
["timestamp","ask_amount","ask_price","bid_price","bid_amount"]
[1743161933958,7.6109,131.44,131.43,0.05443348]
[1743161934861,7.613,131.41,131.35,98.94941848]
[1743161935062,7.613,131.41,131.35,138.28941848]
[1743161935259,15.3198039,131.44,131.35,138.28941848]
[1743161935460,7.6123,131.42,131.37,15.3198039]
[1743161935857,7.6123,131.42,131.38,11.7124]
[1743161936054,7.66234068,131.41,131.39,0.05602377]
[1743161936264,0.04964068,131.41,131.39,0.05602377]
[1743161936664,7.6132,131.4,131.39,0.05602377]
[1743161937062,0.04964068,131.41,131.39,0.05602377]
[1743161937364,7.66264068,131.41,131.39,0.05602377]
[1743161937969,7.6132,131.4,131.39,0.05602377]
[1743161944667,39.36964068,131.41,131.39,0.05602377]
[1743161945171,46.98254068,131.41,131.39,0.05602377]
[1743161945469,39.36964068,131.41,131.39,0.05602377]
[1743161946070,7.6132,131.4,131.39,0.05602377]
[1743161946272,39.36964068,131.41,131.39,0.05602377]
[1743161946574,0.04964068,131.41,131.39,0.05602377]
[1743161946967,39.3,131.47,131.39,15.37582767]
[1743161947162,7.6106,131.45,131.41,15.3198039]
[1743161947568,39.3,131.47,131.42,7.6117]
[1743161948175,0.05306599,131.46,131.43,7.66198316]
[1743161948368,0.05306599,131.46,131.43,0.05068316]
[1743161948774,7.66306599,131.46,131.43,0.05068316]
[1743161949066,0.05306599,131.46,131.43,0.05068316]
[1743161949471,0.05306599,131.46,131.43,7.66198316]
[1743161949666,0.05306599,131.46,131.43,0.05068316]
[1743161950173,7.66306599,131.46,131.43,0.05068316]
[1743161950577,0.05306599,131.46,131.43,0.05068316]
[1743161951380,0.05306599,131.46,131.43,7.66178316]
[1743161951573,0.05306599,131.46,131.43,0.05068316]
[1743161951779,0.05306599,131.46,131.43,15.37048706]
[1743161951980,7.6088,131.48,131.44,7.6109]
[1743161952181,39.3,131.51,131.44,7.6109]
[1743161952977,15.3198039,131.49,131.41,15.3198039]
[1743161953183,7.6113,131.44,131.4,294.5625]
[1743161953583,0.0569323,131.43,131.41,7.66117067]
[1743161956283,0.0569323,131.43,131.41,22.98097457]
[1743161956674,0.0569323,131.43,131.42,7.612]
[1743161956876,30.5318039,131.53,131.42,7.6]
[1743161957083,39.26,131.52,131.45,15.3198039]
[1743161957280,7.6087,131.48,131.45,22.9298039]
[1743161957874,7.6663093,131.48,131.45,0.05144845]
[1743161958481,7.6663093,131.48,131.45,7.66164845]
[1743161959287,7.6091,131.47,131.45,0.05144845]
[1743161959489,0.0576093,131.48,131.45,0.05144845]
[1743161960488,7.6097,131.46,131.45,0.05144845]
[1743161960987,7.6095,131.47,131.45,0.05144845]
[1743161961390,0.0576093,131.48,131.45,0.05144845]
[1743161961579,7.6664093,131.48,131.45,7.66144845]
[1743161963491,7.6664093,131.48,131.45,0.05144845]
[1743161963880,7.6092,131.47,131.45,0.05144845]
[1743161964182,0.0576093,131.48,131.45,0.05144845]
[1743161964389,7.6097,131.46,131.45,0.05144845]
[1743161964688,0.0576093,131.48,131.45,0.05144845]
[1743161965084,7.6095,131.47,131.45,0.05144845]
[1743161965690,7.6097,131.46,131.45,0.05144845]
[1743161967892,39.2976093,131.48,131.45,0.05144845]
[1743161967893,0.0576093,131.48,131.45,0.05144845]
[1743161969093,0.0576093,131.48,131.46,7.6096]
[1743161969495,0.0576093,131.48,131.45,0.05144845]
[1743161969899,0.0576093,131.48,131.46,7.6096]
[1743161970091,0.0576093,131.48,131.45,0.05144845]
[1743161970292,7.6662093,131.48,131.45,0.05144845]
[1743161970895,0.0576093,131.48,131.45,0.05144845]
[1743161971996,7.6666093,131.48,131.45,0.05144845]
[1743161972193,0.0576093,131.48,131.45,0.05144845]
[1743161973293,7.6095,131.47,131.45,0.05144845]
[1743161973900,0.0576093,131.48,131.45,0.05144845]
[1743161974493,7.6097,131.46,131.45,0.05144845]
[1743161976600,7.6126,131.42,131.4,251.1]
[1743161976796,15.3198039,131.46,131.37,19.3575039]
[1743161977100,15.3198039,131.46,131.4,7.6129]
[1743161977396,7.6117,131.43,131.4,7.6129]
[1743161977597,54.5198039,131.44,131.37,4.0377]
[1743161977791,0.05697333,131.43,131.4,0.05782608]
[1743161977987,7.6126,131.41,131.4,0.05782608]
[1743161981304,7.6146,131.38,131.35,4.1849]
[1743161981797,15.3198039,131.42,131.34,258.6364]
[1743161982102,15.3198039,131.42,131.34,251.02]
[1743161982301,3.944,131.43,131.35,15.3198039]
[1743161982496,0.05228329,131.39,131.37,0.05729801]
[1743161983203,0.05228329,131.39,131.38,7.6144]
[1743161985203,0.05228329,131.39,131.37,0.05729801]
[1743161986306,0.05228329,131.39,131.37,7.67219801]
[1743161986903,7.6144,131.38,131.37,0.05729801]
[1743161987098,0.05228329,131.39,131.37,0.05729801]
[1743161988001,7.66608329,131.39,131.37,0.05729801]
[1743161990699,0.05228329,131.39,131.37,0.05729801]
[1743161991304,0.05228329,131.39,131.37,7.67169801]
[1743161991503,39.16,131.44,131.37,0.05729801]
[1743161991708,7.6124,131.42,131.38,7.6141]
[1743161992506,7.6127,131.41,131.38,7.6141]
[1743161992702,0.05278619,131.41,131.39,0.05354363]
[1743161993507,0.05278619,131.41,131.39,7.66704363]
[1743161993712,0.05278619,131.41,131.39,0.05354363]
[1743161994803,0.05278619,131.41,131.4,7.6132]
[1743161995009,0.05278619,131.41,131.39,0.05354363]
[1743161995719,7.6132,131.4,131.39,0.05354363]
[1743161997716,7.66568619,131.41,131.39,0.05354363]
[1743161998717,19.2638039,131.46,131.39,0.05354363]
[1743161998718,379.2118,131.53,131.39,0.05354363]
[1743161998920,13.02838094,131.52,131.45,15.3198039]
[1743161999114,11.50769968,131.52,131.45,15.3198039]
[1743161999314,364.0,131.53,131.47,7.6091]
[1743161999716,364.0,131.53,131.45,15.3198039]
[1743162000022,0.05018085,131.51,131.49,0.05293961]
[1743162003417,0.05018085,131.51,131.49,7.66083961]
[1743162004428,0.05018085,131.51,131.49,0.05293961]
[1743162009232,0.05018085,131.51,131.49,22.98074351]
[1743162009825,0.05018085,131.51,131.49,15.37274351]
[1743162010521,0.05018085,131.51,131.49,22.98064351]
[1743162010832,39.06,131.57,131.49,15.37274351]
[1743162011026,7.6049,131.55,131.49,22.9276039]
[1743162011227,39.06,131.57,131.49,15.3198039]
[1743162012033,7.63278146,131.54,131.52,0.05594286]
[1743162012636,7.6057,131.53,131.52,0.05594286]
[1743162012931,15.34708536,131.54,131.46,4.0604]
[1743162013136,7.6073,131.51,131.46,4.0604]
[1743162013835,7.6074,131.5,131.46,4.0604]
[1743162014028,0.05324586,131.5,131.47,0.05182814]
[1743162015035,7.66074586,131.5,131.47,0.05182814]
[1743162015429,0.05324586,131.5,131.47,0.05182814]
[1743162015733,7.6086,131.48,131.47,0.05182814]
[1743162019533,46.6282,131.49,131.47,0.05182814]
[1743162020034,39.02,131.49,131.47,0.05182814]
[1743162020237,7.6086,131.48,131.47,0.05182814]
[1743162020738,46.6283,131.49,131.47,0.05182814]
[1743162020945,39.02,131.49,131.47,0.05182814]
[1743162021535,7.6086,131.48,131.47,0.05182814]
[1743162029546,9.8001266,131.48,131.43,251.12]
[1743162029747,9.8001266,131.46,131.41,14.0902266]
[1743162029942,9.8001266,131.46,131.41,21.7028266]
[1743162030143,7.6112,131.44,131.41,21.7028266]
[1743162030344,9.8001266,131.46,131.42,7.612]
[1743162030543,9.8001266,131.47,131.42,17.4121266]
[1743162030845,0.05464234,131.45,131.43,0.05587291]
[1743162031238,7.66534234,131.45,131.43,0.05587291]
[1743162032243,7.6109,131.44,131.43,0.05587291]
[1743162032444,17.4110266,131.44,131.43,0.05587291]
[1743162033549,7.6109,131.44,131.43,0.05587291]
[1743162036146,7.66524234,131.45,131.43,0.05587291]
[1743162038647,0.05464234,131.45,131.44,9.8001266]
[1743162039547,0.05464234,131.45,131.44,17.4110266]
[1743162040752,48.7401266,131.51,131.44,9.8001266]
[1743162040945,9.8001266,131.49,131.44,9.8001266]
[1743162041351,7.6095,131.47,131.44,17.4109266]
[1743162042054,7.66235532,131.47,131.44,17.45932797]
[1743162043151,0.05285532,131.47,131.45,17.4104266]
[1743162043655,0.05285532,131.47,131.45,9.8001266]
[1743162046452,364.0,131.52,131.46,9.8001266]
[1743162046657,15.2068,131.57,131.48,9.8001266]
[1743162046658,9.8001266,131.53,131.48,9.8001266]
[1743162046955,7.6065,131.52,131.48,17.4083266]
[1743162047153,38.92,131.56,131.49,9.8001266]
[1743162047350,9.8001266,131.54,131.49,9.8001266]
[1743162047550,7.606,131.53,131.51,0.04879614]
[1743162047857,9.8001266,131.52,131.51,0.04879614]
[1743162048058,17.4063266,131.52,131.51,0.04879614]
[1743162048855,22.91437293,131.52,131.51,0.04879614]
[1743162050061,7.609,131.48,131.45,297.5501]
[1743162050253,54.20817293,131.52,131.45,251.02]
[1743162050458,15.30817293,131.5,131.42,62.33947293]
[1743162050661,15.30817293,131.48,131.42,8.1313]
[1743162051161,7.6104,131.45,131.42,15.7429]
[1743162051362,7.6104,131.45,131.44,0.05101097]
[1743162051761,7.66234789,131.46,131.44,0.05101097]
[1743162053265,0.05234789,131.46,131.44,7.66181097]
[1743162053761,0.05234789,131.46,131.45,7.6103]
[1743162053951,16.63117293,131.54,131.44,15.3591839]
[1743162054154,38.88,131.53,131.46,15.30817293]
[1743162055155,0.02400305,131.51,131.48,0.05407605]
[1743162056260,7.608,131.49,131.48,0.05407605]
[1743162062070,7.6104,131.45,131.42,8.1313]
[1743162062274,15.30817293,131.48,131.42,8.1313]
[1743162062875,7.6105,131.45,131.42,8.1313]
[1743162063269,7.6600534,131.45,131.42,8.18697526]
[1743162063473,0.0495534,131.45,131.42,15.79897526]
[1743162064978,0.0495534,131.45,131.42,8.18697526]
[1743162065181,0.0495534,131.45,131.42,4.14867526]
[1743162065383,7.6115,131.43,131.42,4.14867526]
[1743162066071,38.82,131.52,131.42,27.05684819]
[1743162066272,15.2113,131.54,131.44,15.30817293]
[1743162066468,15.2113,131.54,131.42,11.693]
[1743162066469,15.30817293,131.51,131.42,4.093]
[1743162067077,7.6374257,131.48,131.45,0.05462562]
[1743162067483,0.0285257,131.48,131.45,0.05462562]
[1743162068674,7.6375257,131.48,131.45,0.05462562]
[1743162069586,7.6092,131.47,131.45,0.05462562]
[1743162069881,0.0285257,131.48,131.45,0.05462562]
[1743162070083,7.6097,131.46,131.45,0.05462562]
[1743162070282,54.10817293,131.47,131.39,255.2622]
[1743162070482,15.30817293,131.45,131.39,255.2622]
[1743162070673,7.6118,131.43,131.39,255.2622]
[1743162070876,7.6118,131.43,131.39,346.50531458]
[1743162071086,58.39777293,131.47,131.39,338.89181458]
[1743162071280,7.6111,131.44,131.39,354.19998751]
[1743162071481,7.66549827,131.44,131.42,0.05464649]
[1743162071683,0.05439827,131.44,131.42,0.05464649]
[1743162071883,7.6115,131.43,131.42,0.05464649]
[1743162073886,7.6131,131.41,131.38,4.2307]
[1743162074482,7.6131,131.41,131.38,11.845]
[1743162074683,7.6123,131.42,131.38,11.845]
[1743162075085,0.05156507,131.41,131.39,0.05632912]
[1743162075990,0.05156507,131.41,131.39,62.05632912]
[1743162076173,0.05156507,131.41,131.39,69.66972912]
[1743162076379,0.05156507,131.41,131.39,7.66972912]
[1743162076988,0.05156507,131.41,131.39,0.05632912]
[1743162078282,7.6132,131.4,131.39,0.05632912]
[1743162079186,0.05156507,131.41,131.39,0.05632912]
[1743162080592,0.05156507,131.41,131.39,7.66982912]
[1743162080983,0.05156507,131.41,131.39,0.05632912]
[1743162081389,0.05156507,131.41,131.4,7.6132]
[1743162081994,0.05156507,131.41,131.39,7.66982912]
[1743162082891,0.05156507,131.41,131.39,0.05632912]
[1743162083492,0.05156507,131.41,131.39,7.67012912]
[1743162083988,0.05156507,131.41,131.39,0.05632912]
[1743162085198,0.05156507,131.41,131.39,7.67002912]
[1743162086895,0.05156507,131.41,131.39,0.05632912]
[1743162087093,7.66446507,131.41,131.39,0.05632912]
[1743162087291,0.05156507,131.41,131.39,0.05632912]
[1743162088096,7.6132,131.4,131.39,0.05632912]
[1743162088889,0.05156507,131.41,131.39,0.05632912]
[1743162089293,0.05156507,131.41,131.4,7.6132]
[1743162090583,0.05156507,131.41,131.4,17.42087866]
[1743162090791,364.0,131.47,131.4,9.80767866]
[1743162090984,38.7,131.49,131.4,19.41695639]
[1743162091196,46.3084,131.49,131.42,15.31395639]
[1743162091495,15.31395639,131.5,131.44,7.6108]
[1743162091704,54.01395639,131.5,131.44,7.6108]
[1743162091891,7.65788751,131.48,131.46,0.05609244]
[1743162092401,0.04888751,131.48,131.46,0.05609244]
[1743162092600,7.6091,131.47,131.46,0.05609244]
[1743162094400,0.04888751,131.48,131.46,0.05609244]
[1743162094795,0.04888751,131.48,131.47,7.6091]
[1743162095193,15.31395639,131.55,131.46,15.37004883]
[1743162095394,46.2848,131.55,131.48,15.31395639]
[1743162095809,53.99395639,131.55,131.46,15.31395639]
[1743162096097,53.99395639,131.55,131.46,19.39585639]
[1743162096402,0.03734523,131.52,131.49,0.05762622]
[1743162097002,7.64404523,131.52,131.49,0.05762622]
[1743162097202,0.03734523,131.52,131.49,0.05762622]
[1743162097595,0.03734523,131.52,131.49,7.66542622]
[1743162097796,0.03734523,131.52,131.49,0.05762622]
[1743162098299,7.64364523,131.52,131.49,0.05762622]
[1743162098893,0.03734523,131.52,131.49,0.05762622]
[1743162099192,0.03734523,131.52,131.49,7.66522622]
[1743162099802,0.03734523,131.52,131.5,7.6072]
[1743162100499,402.64,131.58,131.51,7.6068]
[1743162100705,7.6052,131.54,131.5,15.31395639]
[1743162101006,7.6052,131.54,131.5,22.92105639]
[1743162101207,7.6052,131.54,131.5,15.31395639]
[1743162101596,7.6052,131.54,131.5,22.92125639]
[1743162101802,7.604,131.56,131.51,0.05536027]
[1743162101999,402.64,131.58,131.51,4.19196027]
[1743162102903,7.6049,131.55,131.51,11.79866027]
[1743162103304,7.6042,131.56,131.51,4.19196027]
[1743162103504,402.64,131.58,131.51,4.19196027]
[1743162103908,7.605,131.55,131.51,4.19196027]
[1743162104207,7.605,131.55,131.51,11.79856027]
[1743162105204,7.6051,131.54,131.51,4.19196027]
[1743162105411,402.64,131.58,131.51,4.19196027]
[1743162105911,7.6054,131.54,131.51,4.19196027]
[1743162107313,402.64,131.58,131.51,4.19196027]
[1743162107907,7.6055,131.54,131.51,4.19196027]
[1743162108213,15.31395639,131.55,131.51,0.05536027]
[1743162108513,7.6081,131.49,131.45,7.61]
[1743162108810,53.89395639,131.53,131.44,15.31395639]
[1743162109012,7.608,131.49,131.45,7.61]
[1743162109602,0.05066423,131.48,131.46,0.05726354]
[1743162109807,53.89395639,131.56,131.46,15.37121993]
[1743162110110,53.89395639,131.56,131.48,15.31395639]
[1743162110306,53.89395639,131.56,131.47,38.58]
[1743162110811,7.6065,131.52,131.47,38.58]
[1743162111013,7.6065,131.52,131.5,0.05272518]
[1743162112609,7.6058,131.53,131.5,9.84532216]
[1743162113913,9.79259698,131.53,131.5,0.05272518]
[1743162114117,9.79259698,131.51,131.5,0.05272518]
[1743162114617,17.39939698,131.51,131.5,0.05272518]
[1743162116815,7.609,131.48,131.45,13.86249698]
[1743162117018,9.79259698,131.49,131.44,9.79259698]
[1743162117312,9.79259698,131.48,131.42,3.9806]
[1743162117516,7.6094,131.47,131.43,9.79259698]
[1743162117918,7.6094,131.47,131.43,17.40389698]
[1743162118117,7.65798497,131.46,131.44,0.04971346]
[1743162118626,0.04808497,131.46,131.44,0.04971346]
[1743162119820,7.65788497,131.46,131.44,0.04971346]
[1743162120717,0.04808497,131.46,131.44,0.04971346]
[1743162122720,7.65788497,131.46,131.44,0.04971346]
[1743162123024,0.04808497,131.46,131.44,0.04971346]
[1743162123227,7.6103,131.45,131.44,0.04971346]
[1743162124621,7.65808497,131.46,131.44,0.04971346]
[1743162125317,0.04808497,131.46,131.45,7.6103]
[1743162125912,0.04808497,131.46,131.44,7.66021346]
[1743162127130,0.04808497,131.46,131.44,0.04971346]
[1743162129127,7.6103,131.45,131.44,0.04971346]
[1743162133119,38.52808497,131.46,131.44,0.04971346]
[1743162133421,46.13798497,131.46,131.44,0.04971346]
[1743162134734,38.52808497,131.46,131.44,7.66051346]
[1743162135240,0.04808497,131.46,131.44,7.66051346]
[1743162136235,0.04808497,131.46,131.44,0.04971346]
[1743162136733,7.6103,131.45,131.44,0.04971346]
[1743162137933,46.0703,131.45,131.44,0.04971346]
[1743162138237,7.6117,131.43,131.38,19.35710366]
[1743162138736,7.6121,131.42,131.38,19.35710366]
[1743162138937,38.46,131.45,131.38,19.35710366]
[1743162139332,0.04825043,131.43,131.4,0.05519531]
[1743162139833,7.66025043,131.43,131.4,0.05519531]
[1743162140637,7.6121,131.42,131.4,0.05519531]
[1743162143038,7.66005043,131.43,131.4,0.05519531]
[1743162143335,0.04825043,131.43,131.4,0.05519531]
[1743162143731,7.66005043,131.43,131.4,0.05519531]
[1743162144240,9.80615867,131.42,131.4,0.05519531]
[1743162144431,7.6126,131.41,131.4,0.05519531]
[1743162145030,9.80615867,131.42,131.34,9.80615867]
[1743162145031,7.6138,131.39,131.34,9.80615867]
[1743162145233,9.80615867,131.4,131.34,9.80615867]
[1743162145432,9.80615867,131.4,131.35,258.6358]
[1743162145639,17.41965867,131.4,131.35,258.6358]
[1743162145937,17.41965867,131.4,131.36,7.6154]
[1743162146141,0.05616823,131.39,131.36,7.66949172]
[1743162146331,0.05616823,131.39,131.36,0.05409172]
[1743162146527,0.05616823,131.39,131.37,7.6146]
[1743162146732,0.05616823,131.39,131.37,9.80615867]
[1743162147239,0.05616823,131.39,131.38,7.6144]
[1743162147433,0.05616823,131.39,131.37,9.80615867]
[1743162147830,0.05616823,131.39,131.36,7.66939172]
[1743162148440,0.05616823,131.39,131.36,0.05409172]
[1743162148742,9.8623269,131.39,131.36,0.05409172]
[1743162149242,9.80615867,131.37,131.36,0.05409172]
[1743162149630,17.42075867,131.38,131.36,0.05409172]
[1743162150040,9.80615867,131.38,131.36,0.05409172]
[1743162150229,7.6149,131.37,131.36,0.05409172]
[1743162150629,9.80615867,131.38,131.36,0.05409172]
[1743162150932,17.42085867,131.38,131.36,0.05409172]
[1743162152540,7.6149,131.37,131.36,0.05409172]
[1743162152941,55.80105867,131.37,131.36,0.05409172]
[1743162153134,9.80615867,131.35,131.3,9.80615867]
[1743162153438,9.80615867,131.34,131.29,9.80615867]
[1743162153642,7.6185,131.31,131.28,9.80615867]
[1743162154135,7.67302583,131.31,131.28,9.86012164]
[1743162154535,0.05452583,131.31,131.28,9.86012164]
[1743162154742,9.8606845,131.31,131.28,0.05396297]
[1743162154945,7.6191,131.3,131.28,0.05396297]
[1743162155241,9.8606845,131.31,131.28,0.05396297]
[1743162155944,0.05452583,131.31,131.28,9.86012164]
[1743162156338,0.05452583,131.31,131.28,17.48002164]
[1743162156842,0.05452583,131.31,131.28,7.67386297]
[1743162157341,0.05452583,131.31,131.28,15.40220635]
[1743162158557,0.05452583,131.31,131.28,0.05396297]
[1743162159354,0.05452583,131.31,131.29,7.6193]
[1743162160252,0.05452583,131.31,131.3,7.619]
[1743162162453,379.34824338,131.37,131.29,62.0]
[1743162162658,402.36,131.37,131.3,19.42004338]
[1743162162849,38.36,131.37,131.3,19.42004338]
[1743162163050,38.36,131.37,131.31,4.2987]
[1743162163253,22.96204338,131.39,131.31,4.2987]
[1743162163548,0.05005132,131.36,131.34,0.04866434]
[1743162164249,0.05005132,131.36,131.35,7.6156]
[1743162164658,0.05005132,131.36,131.34,0.04866434]
[1743162164960,0.05005132,131.36,131.34,7.66506434]
[1743162168159,0.05005132,131.36,131.34,0.04866434]
[1743162171865,15.34824338,131.35,131.27,15.34824338]
[1743162172067,15.34824338,131.35,131.27,23.53304338]
[1743162172365,7.617,131.34,131.3,7.6185]
[1743162173066,0.04976215,131.33,131.31,0.04801071]
[1743162174167,7.66746215,131.33,131.31,0.04801071]
[1743162174960,7.6178,131.32,131.31,0.04801071]
[1743162175169,0.04976215,131.33,131.31,0.04801071]
[1743162175963,0.04976215,131.33,131.31,7.66621071]
[1743162176263,0.04976215,131.33,131.31,0.04801071]
[1743162176466,7.6178,131.32,131.31,0.04801071]
[1743162176957,17.44195339,131.32,131.31,0.04801071]
[1743162179265,17.49151554,131.33,131.31,0.04801071]
[1743162180565,9.87391554,131.33,131.31,0.04801071]
[1743162181267,17.49151554,131.33,131.31,0.04801071]
[1743162181466,9.87391554,131.33,131.31,0.04801071]
[1743162182670,17.49141554,131.33,131.31,0.04801071]
[1743162182868,9.87391554,131.33,131.31,0.04801071]
[1743162183068,0.04976215,131.33,131.31,0.04801071]
[1743162183268,9.87391554,131.33,131.31,0.04801071]
[1743162183471,9.82415339,131.32,131.31,0.04801071]
[1743162185171,9.87391554,131.33,131.31,7.66641071]
[1743162185572,0.04976215,131.33,131.31,7.66641071]
[1743162186769,0.04976215,131.33,131.32,7.6178]
[1743162190973,0.04976215,131.33,131.31,7.66611071]
[1743162191173,0.04976215,131.33,131.31,0.04801071]
[1743162191977,17.49121554,131.33,131.31,0.04801071]
[1743162193680,0.04976215,131.33,131.31,0.04801071]
[1743162194274,0.04976215,131.33,131.32,7.6178]
[1743162195881,0.04976215,131.33,131.31,7.66611071]
[1743162196075,0.04976215,131.33,131.31,0.04801071]
[1743162196779,0.04976215,131.33,131.32,7.6178]
[1743162196976,364.0,131.39,131.32,56.18705339]
[1743162197174,9.82415339,131.41,131.36,9.82415339]
[1743162197382,9.82415339,131.42,131.37,9.82415339]
[1743162197584,9.82415339,131.41,131.36,9.82415339]
[1743162197883,9.82415339,131.38,131.34,9.82415339]
[1743162198087,9.82415339,131.38,131.33,38.16]
[1743162198088,9.82415339,131.38,131.37,0.0506834]
[1743162198376,9.82415339,131.38,131.34,7.6163]
[1743162198582,9.82415339,131.38,131.36,0.05085351]
[1743162199382,9.82415339,131.38,131.36,7.66635351]
[1743162199582,0.0577904,131.39,131.36,0.05085351]
[1743162199969,0.0577904,131.39,131.37,7.6146]
[1743162200373,7.6718904,131.39,131.36,0.05085351]
[1743162200574,9.82415339,131.38,131.36,0.05085351]
[1743162200877,7.6718904,131.39,131.36,0.05085351]
[1743162200878,0.0577904,131.39,131.36,0.05085351]
[1743162203080,0.0577904,131.39,131.37,7.6145]
[1743162204237,0.0577904,131.39,131.38,7.6144]
[1743162205176,0.0577904,131.39,131.36,62.05085351]
[1743162205177,0.0577904,131.39,131.37,7.6147]
[1743162205581,0.0577904,131.39,131.36,62.05085351]
[1743162205982,0.0577904,131.39,131.36,69.66605351]
[1743162207182,0.0577904,131.39,131.36,0.05085351]
[1743162209187,7.6718904,131.39,131.36,0.05085351]
[1743162210489,0.0577904,131.39,131.36,7.66625351]
[1743162211594,0.0577904,131.39,131.36,0.05085351]
[1743162212095,7.6146,131.38,131.36,0.05085351]
[1743162212589,0.0577904,131.39,131.36,0.05085351]
[1743162213294,0.0577904,131.39,131.37,7.6148]
[1743162213995,0.0577904,131.39,131.36,7.66605351]
[1743162214892,0.0577904,131.39,131.37,7.6148]
[1743162215088,0.0577904,131.39,131.36,0.05085351]
[1743162215394,0.0577904,131.39,131.38,7.6144]
[1743162218190,0.0577904,131.39,131.36,0.05085351]
[1743162218895,0.0577904,131.39,131.38,7.6144]
[1743162219491,379.33416198,131.45,131.37,57.60186198]
[1743162219797,57.34406198,131.47,131.38,4.2441]
[1743162219991,7.61,131.46,131.38,4.2441]
[1743162220186,15.33416198,131.47,131.39,15.33416198]
[1743162220586,0.05565788,131.44,131.42,0.05733823]
[1743162220791,15.33416198,131.51,131.42,0.05733823]
[1743162220792,15.33416198,131.51,131.43,15.33416198]
[1743162220993,15.33416198,131.51,131.44,73.8546]
[1743162221191,15.33416198,131.5,131.44,66.2441]
[1743162221387,15.33416198,131.5,131.44,4.2441]
[1743162221586,7.61,131.46,131.42,42.2477]
[1743162221989,0.04734979,131.45,131.43,7.66684709]
[1743162222301,0.04734979,131.45,131.43,0.05544709]
[1743162224895,9.84958407,131.45,131.43,0.05544709]
[1743162225100,9.80223428,131.44,131.43,0.05544709]
[1743162226001,17.41313428,131.44,131.43,0.05544709]
[1743162226395,7.6109,131.44,131.43,0.05544709]
[1743162226800,17.41313428,131.44,131.43,0.05544709]
[1743162227005,55.38223428,131.44,131.36,8.552]
[1743162227198,9.80223428,131.39,131.36,8.552]
[1743162227599,9.80223428,131.39,131.33,298.84223428]
[1743162227896,9.80223428,131.38,131.33,260.86223428]
[1743162228095,7.66959851,131.37,131.35,0.05629891]
[1743162229812,0.05419851,131.37,131.35,0.05629891]
[1743162231203,7.6155,131.36,131.35,0.05629891]
[1743162231804,0.05419851,131.37,131.35,0.05629891]
[1743162232403,7.66939851,131.37,131.35,0.05629891]
[1743162232597,0.05419851,131.37,131.35,0.05629891]
[1743162235811,0.05419851,131.37,131.36,7.6155]
[1743162236906,0.05419851,131.37,131.35,7.67209891]
[1743162237102,0.05419851,131.37,131.35,0.05629891]
[1743162238207,0.05419851,131.37,131.36,7.6155]
[1743162238394,0.05419851,131.37,131.35,0.05629891]
[1743162239007,0.05419851,131.37,131.36,7.6155]
[1743162241109,45.5523,131.42,131.38,7.6139]
[1743162241609,7.6123,131.42,131.38,7.6139]
[1743162242313,0.04859837,131.41,131.39,0.05123679]
[1743162242609,15.38266321,131.41,131.39,0.05123679]
[1743162242814,7.6132,131.4,131.39,0.05123679]
[1743162244313,7.615,131.37,131.33,251.06]
[1743162244708,15.33406484,131.39,131.33,251.06]
[1743162245105,53.23406484,131.39,131.33,251.06]
[1743162245613,0.05834588,131.37,131.35,0.05644164]
[1743162246016,0.05834588,131.37,131.36,7.6155]
[1743162248314,0.05834588,131.37,131.35,0.05644164]
[1743162248913,9.87471983,131.37,131.35,0.05644164]
[1743162249116,7.6155,131.36,131.35,0.05644164]
[1743162249818,0.05834588,131.37,131.35,0.05644164]
[1743162250218,7.67354588,131.37,131.35,0.05644164]
[1743162250919,7.6155,131.36,131.35,0.05644164]
[1743162253411,9.87471983,131.37,131.35,0.05644164]
[1743162253611,0.05834588,131.37,131.35,0.05644164]
[1743162255409,0.05834588,131.37,131.35,9.87281559]
[1743162255920,0.05834588,131.37,131.36,7.6155]
[1743162256110,0.05834588,131.37,131.36,17.43187395]
[1743162257018,9.81637395,131.44,131.36,9.81637395]
[1743162257220,9.81637395,131.44,131.39,9.81637395]
[1743162257621,17.42757395,131.44,131.39,17.42977395]
[1743162258012,7.6117,131.43,131.39,9.81637395]
[1743162258209,17.46956323,131.43,131.4,0.05394634]
[1743162258619,7.6121,131.42,131.4,0.05394634]
[1743162258814,9.81637395,131.41,131.4,0.05394634]
[1743162259418,9.85786323,131.43,131.4,0.05394634]
[1743162259614,17.46966323,131.43,131.4,0.05394634]
[1743162260517,9.85786323,131.43,131.4,0.05394634]
[1743162261014,0.04148928,131.43,131.4,9.87032029]
[1743162261624,0.04148928,131.43,131.4,17.48322029]
[1743162262017,0.04148928,131.43,131.41,9.81637395]
[1743162263126,0.04148928,131.43,131.4,17.48322029]
[1743162263421,0.04148928,131.43,131.4,7.66684634]
[1743162263625,9.85786323,131.43,131.4,0.05394634]
[1743162264429,17.46956323,131.43,131.4,0.05394634]